[Event "9th RTU Rapid 2019"]
[Site "Riga"]
[Date "2019.08.04"]
[Round "6.26"]
[White "Petrovskis, Olegs"]
[Black "Krums, Ilmars"]
[Result "1-0"]
[WhiteElo "2147"]
[BlackElo "1971"]
[PlyCount "137"]
[EventDate "2019.08.05"]
[EventType "swiss"]
[EventCountry "LAT"]
[TimeControl "5400+30"]
[WhiteClock "0:00:32"]
[BlackClock "0:01:15"]

1. d4 {[%emt 1:15:22]} Nf6 {[%emt 1:15:22]} 2. Nf3 {[%emt 0:00:27]} e6 {[%emt 0:00:25]} 3. c4 {[%emt 0:00:29]} Bb4+ {[%emt 0:00:27]} 4. Bd2 {[%emt 0:00:27]} Qe7 {[%emt 0:00:26]} 5. Nc3 {[%emt 0:00:33]} Bxc3 {[%emt 0:00:29]} 6. Bxc3 {[%emt 0:00:26]} Ne4 {[%emt 0:00:32]} 7. Qb3 {[%emt 0:00:34]} Nxc3 {[%emt 0:00:27]} 8. Qxc3 {[%emt 0:00:27]} d6 {[%emt 0:00:43]} 9. e3 {[%emt 0:00:36]} Nd7 {[%emt 0:00:37]} 10. Be2 {[%emt 0:00:27]} b6 {[%emt 0:00:34]} 11. O-O {[%emt 0:00:28]} Bb7 {[%emt 0:00:25]} 12. b4 {[%emt 0:00:31]} a5 {[%emt 0:01:02]} 13. a3 {[%emt 0:00:39]} O-O {[%emt 0:00:29]} 14. Rfc1 {[%emt 0:02:50]} c5 {[%emt 0:02:34]} 15. bxc5 {[%emt 0:00:31]} bxc5 {[%emt 0:00:27]} 16. Rab1 {[%emt 0:00:36]} Bc6 {[%emt 0:00:27]} 17. Rb2 {[%emt 0:00:40]} a4 {[%emt 0:02:47]} 18. Rd2 {[%emt 0:01:12]} Rfb8 {[%emt 0:01:01]} 19. d5 {[%emt 0:00:26]} exd5 {[%emt 0:00:39]} 20. cxd5 {[%emt 0:00:27]} Bb5 {[%emt 0:00:26]} 21. Bd1 {[%emt 0:00:55]} Nf6 {[%emt 0:01:25]} 22. Bc2 {[%emt 0:01:04]} Rb6 {[%emt 0:01:57]} 23. h3 {[%emt 0:01:03]} Rab8 {[%emt 0:01:22]} 24. Rb1 {[%emt 0:00:53]} Be8 {[%emt 0:02:24]} 25. Rxb6 {[%emt 0:00:50]} Rxb6 {[%emt 0:00:25]} 26. Qa5 {[%emt 0:02:25]} Rb5 {[%emt 0:00:27]} 27. Qa8 {[%emt 0:00:50]} Qb7 {[%emt 0:00:41]} 28. Qd8 {[%emt 0:00:49]} Qb8 {[%emt 0:00:37]} 29. Qxb8 {[%emt 0:01:15]} Rxb8 {[%emt 0:00:26]} 30. e4 {[%emt 0:00:37]} Bb5 {[%emt 0:02:52]} 31. e5 {[%emt 0:02:01]} dxe5 {[%emt 0:00:27]} 32. Nxe5 {[%emt 0:00:25]} Nd7 {[%emt 0:00:25]} 33. Nc6 {[%emt 0:02:36]} Re8 {[%emt 0:00:32]} 34. Na7 {[%emt 0:00:26]} Re1+ {[%emt 0:01:07]} 35. Kh2 Re2 {[%emt 0:00:51]} 36. Rxe2 {[%emt 0:00:59]} Bxe2 {[%emt 0:00:26]} 37. Bxa4 {[%emt 0:00:03]} Nb6 {[%emt 0:00:25]} 38. d6 {[%emt 0:01:23]} Kf8 {[%emt 0:00:26]} 39. Bc6 {[%emt 0:01:15]} Ba6 {[%emt 0:00:49]} 40. a4 {[%emt 0:00:28]} c4 {[%emt 0:00:40]} 41. a5 {[%emt 0:01:05]} c3 {[%emt 0:00:26]} 42. axb6 {[%emt 0:00:27]} c2 {[%emt 0:00:26]} 43. d7 {[%emt 0:00:26]} Ke7 {[%emt 0:00:28]} 44. Nc8+ {[%emt 0:00:26]} Kd8 {[%emt 0:00:26]} 45. Nd6 {[%emt 0:00:26]} c1=Q {[%emt 0:00:34]} 46. Nxf7+ {[%emt 0:00:26]} Ke7 {[%emt 0:00:25]} 47. d8=Q+ {[%emt 0:00:27]} Kxf7 {[%emt 0:00:26]} 48. Bd5+ {[%emt 0:00:32]} Kg6 {[%emt 0:00:28]} 49. Qd6+ {[%emt 0:00:28]} Kf5 {[%emt 0:00:26]} 50. g4+ {[%emt 0:00:50]} Kg5 {[%emt 0:00:26]} 51. f4+ {[%emt 0:00:33]} Qxf4+ 52. Qxf4+ {[%emt 0:00:26]} Kxf4 {[%emt 0:00:53]} 53. b7 {[%emt 0:00:28]} Bxb7 {[%emt 0:00:26]} 54. Bxb7 {[%emt 0:00:27]} h5 {[%emt 0:00:25]} 55. Bc8 {[%emt 0:00:26]} g6 {[%emt 0:01:54]} 56. Kg2 {[%emt 0:00:28]} g5 {[%emt 0:00:34]} 57. Kf2 {[%emt 0:00:38]} Ke4 {[%emt 0:00:30]} 58. Kg3 {[%emt 0:00:45]} Ke5 {[%emt 0:00:29]} 59. Kf3 {[%emt 0:00:27]} Kd4 {[%emt 0:00:27]} 60. Ba6 {[%emt 0:00:29]} Ke5 {[%emt 0:00:26]} 61. Ke3 {[%emt 0:00:26]} Kd5 {[%emt 0:00:26]} 62. Bb7+ {[%emt 0:00:29]} Ke5 {[%emt 0:00:27]} 63. Ba8 {[%emt 0:00:27]} Kd6 {[%emt 0:00:36]} 64. Ke4 {[%emt 0:00:26]} Ke6 {[%emt 0:00:27]} 65. Bd5+ {[%emt 0:00:27]} Kf6 {[%emt 0:00:27]} 66. Bb3 {[%emt 0:00:31]} Kg6 {[%emt 0:00:28]} 67. Ke5 {[%emt 0:00:26]} Kh6 {[%emt 0:00:29]} 68. Kf6 {[%emt 0:00:28]} h4 {[%emt 0:00:30]} 69. Ba4 {[%emt 0:00:30]} 1-0

[Event "9th RTU Rapid 2019"]
[Site "Riga"]
[Date "2019.08.04"]
[Round "6.27"]
[White "Daudzvardis, Janis"]
[Black "Ivanisvili, Andrejs"]
[Result "1/2-1/2"]
[WhiteElo "2037"]
[BlackElo "2144"]
[PlyCount "37"]
[EventDate "2019.08.05"]
[EventType "swiss"]
[EventCountry "LAT"]
[TimeControl "5400+30"]
[WhiteClock "0:12:37"]
[BlackClock "0:15:19"]

1. f4 {[%emt 1:15:21]} f5 {[%emt 1:15:25]} 2. e4 {[%emt 0:00:27]} fxe4 {[%emt 0:00:48]} 3. d3 {[%emt 0:00:26]} exd3 {[%emt 0:00:37]} 4. Bxd3 {[%emt 0:00:27]} Nf6 {[%emt 0:01:20]} 5. c4 {[%emt 0:00:30]} e6 {[%emt 0:01:43]} 6. Nf3 {[%emt 0:00:19]} Bc5 {[%emt 0:00:13]} 7. Qc2 Bf8 8. Qd1 {[%emt 0:00:04]} Bc5 9. Qc2 Nc6 {[%emt 0:00:06]} 10. Ng5 {[%emt 0:00:04]} Nd4 {[%emt 0:00:17]} 11. Nf3 {[%emt 0:00:07]} Nc6 12. Ng5 {[%emt 0:00:46]} Nd4 13. Qf2 {[%emt 0:00:08]} Nb3 {[%emt 0:00:05]} 14. Qh4 {[%emt 0:00:26]} Nxa1 {[%emt 0:00:02]} 15. Bg6+ {[%emt 0:00:07]} Kf8 {[%emt 0:00:26]} 16. Nf7 {[%emt 0:00:04]} Qe7 {[%emt 0:00:07]} 17. Nxh8 {[%emt 0:00:09]} Kg8 {[%emt 0:00:07]} 18. Nf7 {[%emt 0:00:38]} hxg6 {[%emt 0:00:05]} 19. Ng5 {[%emt 0:00:03]} 1/2-1/2

[Event "9th RTU Rapid 2019"]
[Site "Riga"]
[Date "2019.08.04"]
[Round "6.28"]
[White "Korchagin, Oleg"]
[Black "Solys, Laimutis"]
[Result "0-1"]
[WhiteElo "2056"]
[BlackElo "2143"]
[PlyCount "70"]
[EventDate "2019.08.05"]
[EventType "swiss"]
[EventCountry "LAT"]
[TimeControl "5400+30"]
[WhiteClock "0:02:32"]
[BlackClock "0:00:22"]

1. e4 {[%emt 1:15:24]} c5 {[%emt 1:15:52]} 2. Nf3 {[%emt 0:00:29]} d6 {[%emt 0:00:30]} 3. d4 {[%emt 0:00:29]} cxd4 4. Nxd4 {[%emt 0:00:27]} Nf6 {[%emt 0:00:53]} 5. Bd3 {[%emt 0:01:14]} g6 {[%emt 0:01:17]} 6. O-O {[%emt 0:01:03]} Bg7 {[%emt 0:00:27]} 7. c3 {[%emt 0:01:04]} O-O {[%emt 0:00:30]} 8. Na3 {[%emt 0:02:05]} Nc6 {[%emt 0:00:35]} 9. f3 {[%emt 0:01:20]} e5 {[%emt 0:02:18]} 10. Ndc2 {[%emt 0:03:52]} d5 {[%emt 0:00:40]} 11. Be3 {[%emt 0:01:03]} Re8 {[%emt 0:01:03]} 12. Qe2 {[%emt 0:02:37]} Be6 {[%emt 0:01:42]} 13. Rad1 {[%emt 0:00:56]} Qe7 {[%emt 0:00:42]} 14. b3 {[%emt 0:00:48]} Rad8 {[%emt 0:00:45]} 15. Bf2 {[%emt 0:01:33]} dxe4 {[%emt 0:00:56]} 16. Bxe4 {[%emt 0:00:29]} Nxe4 {[%emt 0:00:29]} 17. fxe4 {[%emt 0:00:27]} h5 {[%emt 0:02:00]} 18. h3 {[%emt 0:00:27]} Rxd1 {[%emt 0:01:12]} 19. Rxd1 {[%emt 0:00:30]} Rd8 {[%emt 0:00:26]} 20. Be3 {[%emt 0:02:46]} Rxd1+ {[%emt 0:00:43]} 21. Qxd1 {[%emt 0:00:27]} Qh4 {[%emt 0:00:28]} 22. Qf3 {[%emt 0:00:37]} Bf8 {[%emt 0:00:44]} 23. Nb5 {[%emt 0:00:42]} Qd8 {[%emt 0:01:00]} 24. Qe2 {[%emt 0:00:41]} a6 {[%emt 0:01:30]} 25. Na7 {[%emt 0:00:48]} Nxa7 {[%emt 0:00:54]} 26. Bxa7 {[%emt 0:00:27]} Qa5 {[%emt 0:00:27]} 27. Nb4 {[%emt 0:00:33]} Bc5+ {[%emt 0:01:52]} 28. Bxc5 Qxc5+ {[%emt 0:00:27]} 29. Qf2 {[%emt 0:01:01]} Qxc3 {[%emt 0:00:30]} 30. Nd5 {[%emt 0:00:27]} Qc1+ {[%emt 0:00:46]} 31. Kh2 {[%emt 0:00:29]} Bxd5 32. exd5 {[%emt 0:00:26]} Kg7 {[%emt 0:01:35]} 33. Qb6 {[%emt 0:00:31]} Qf4+ {[%emt 0:00:46]} 34. Kg1 {[%emt 0:00:26]} Qd4+ {[%emt 0:00:33]} 35. Qxd4 exd4 {[%emt 0:00:26]} 0-1

[Event "9th RTU Rapid 2019"]
[Site "Riga"]
[Date "2019.08.04"]
[Round "6.29"]
[White "Rudovskii, Filipp"]
[Black "Feldmanis, Arturs"]
[Result "1-0"]
[WhiteElo "2127"]
[BlackElo "1875"]
[PlyCount "62"]
[EventDate "2019.08.05"]
[EventType "swiss"]
[EventCountry "LAT"]
[TimeControl "5400+30"]
[WhiteClock "0:01:13"]
[BlackClock "0:01:29"]

1. e4 {[%emt 1:15:22]} c5 {[%emt 1:15:24]} 2. Nc3 {[%emt 0:00:27]} Nc6 {[%emt 0:00:35]} 3. Bb5 {[%emt 0:00:28]} g6 {[%emt 0:00:59]} 4. Nge2 {[%emt 0:00:51]} Bg7 {[%emt 0:00:30]} 5. O-O {[%emt 0:00:29]} a6 {[%emt 0:00:38]} 6. Bxc6 {[%emt 0:00:27]} bxc6 {[%emt 0:00:28]} 7. d3 {[%emt 0:00:36]} d6 {[%emt 0:01:00]} 8. Be3 {[%emt 0:00:32]} Nf6 {[%emt 0:00:53]} 9. e5 {[%emt 0:00:47]} Ng4 {[%emt 0:01:13]} 10. exd6 {[%emt 0:00:33]} Nxe3 {[%emt 0:04:05]} 11. dxe7 {[%emt 0:03:22]} Qxe7 {[%emt 0:00:26]} 12. fxe3 {[%emt 0:00:26]} Qxe3+ {[%emt 0:00:27]} 13. Kh1 {[%emt 0:00:26]} O-O {[%emt 0:01:15]} 14. Rf3 {[%emt 0:01:33]} Qe7 {[%emt 0:00:44]} 15. Qg1 {[%emt 0:00:37]} Re8 {[%emt 0:01:07]} 16. Raf1 {[%emt 0:03:00]} Bf5 {[%emt 0:01:04]} 17. g4 {[%emt 0:02:30]} Be6 {[%emt 0:00:28]} 18. Nf4 {[%emt 0:01:29]} Bd4 {[%emt 0:01:22]} 19. Qg2 {[%emt 0:00:52]} Bxc3 {[%emt 0:01:08]} 20. bxc3 {[%emt 0:00:27]} Ra7 {[%emt 0:01:10]} 21. c4 {[%emt 0:01:05]} Qd7 {[%emt 0:01:00]} 22. Rg1 {[%emt 0:00:44]} Rb7 {[%emt 0:01:17]} 23. Re3 {[%emt 0:01:12]} Kg7 {[%emt 0:01:01]} 24. Rge1 {[%emt 0:01:23]} Qd6 {[%emt 0:00:49]} 25. Qg3 {[%emt 0:00:35]} Qd4 {[%emt 0:00:43]} 26. Re4 {[%emt 0:00:46]} Qc3 {[%emt 0:00:45]} 27. Qe3 {[%emt 0:00:44]} Qxc2 {[%emt 0:01:30]} 28. Qxc5 {[%emt 0:00:32]} Rb2 {[%emt 0:00:45]} 29. Qd4+ {[%emt 0:00:47]} Kg8 {[%emt 0:00:28]} 30. R4e2 {[%emt 0:00:32]} Bd5+ {[%emt 0:00:31]} 31. cxd5 {[%emt 0:00:27]} Rxe2 {[%emt 0:00:32]} 1-0

[Event "9th RTU Rapid 2019"]
[Site "Riga"]
[Date "2019.08.04"]
[Round "6.30"]
[White "Zukauskas, Arnas Povilas"]
[Black "Korolev, Alexandr"]
[Result "1/2-1/2"]
[WhiteElo "2098"]
[BlackElo "2102"]
[PlyCount "73"]
[EventDate "2019.08.05"]
[EventType "swiss"]
[EventCountry "LAT"]
[TimeControl "5400+30"]
[WhiteClock "0:10:14"]
[BlackClock "0:07:02"]

1. e4 {[%emt 1:15:21]} e5 {[%emt 1:15:22]} 2. Nf3 {[%emt 0:00:27]} Nc6 {[%emt 0:00:26]} 3. Bb5 {[%emt 0:00:26]} Nf6 {[%emt 0:00:27]} 4. Nc3 {[%emt 0:00:33]} Bb4 {[%emt 0:00:28]} 5. O-O {[%emt 0:00:40]} O-O {[%emt 0:00:28]} 6. Re1 {[%emt 0:00:26]} d6 {[%emt 0:00:33]} 7. h3 {[%emt 0:00:28]} Bd7 {[%emt 0:01:08]} 8. d3 {[%emt 0:01:23]} h6 {[%emt 0:00:27]} 9. Bd2 {[%emt 0:00:52]} a6 {[%emt 0:00:52]} 10. Ba4 {[%emt 0:00:35]} Re8 {[%emt 0:00:38]} 11. a3 {[%emt 0:00:49]} Bc5 {[%emt 0:00:27]} 12. b4 {[%emt 0:01:32]} Bb6 {[%emt 0:00:32]} 13. Bb3 {[%emt 0:00:40]} a5 {[%emt 0:00:56]} 14. Nd5 {[%emt 0:01:05]} Nxd5 {[%emt 0:00:36]} 15. Bxd5 {[%emt 0:00:29]} axb4 {[%emt 0:00:46]} 16. axb4 {[%emt 0:00:26]} Be6 {[%emt 0:00:42]} 17. Bxe6 {[%emt 0:02:19]} Rxe6 {[%emt 0:01:41]} 18. c3 {[%emt 0:01:13]} Re8 {[%emt 0:00:27]} 19. Be3 {[%emt 0:01:16]} Bxe3 {[%emt 0:00:30]} 20. Rxe3 {[%emt 0:00:27]} Rxa1 {[%emt 0:00:32]} 21. Qxa1 {[%emt 0:00:26]} Qa8 {[%emt 0:00:26]} 22. Re1 {[%emt 0:00:27]} b6 {[%emt 0:01:01]} 23. Qb2 {[%emt 0:00:39]} Qb7 {[%emt 0:00:26]} 24. Ra1 {[%emt 0:00:26]} Ra8 {[%emt 0:00:26]} 25. Ra3 {[%emt 0:00:35]} Rxa3 {[%emt 0:00:27]} 26. Qxa3 {[%emt 0:00:26]} Qa7 {[%emt 0:00:28]} 27. Qxa7 {[%emt 0:01:43]} Nxa7 {[%emt 0:00:26]} 28. Nd2 {[%emt 0:01:06]} Nb5 {[%emt 0:01:14]} 29. Nb1 {[%emt 0:00:26]} Kf8 {[%emt 0:00:48]} 30. Kf1 {[%emt 0:00:26]} Ke7 {[%emt 0:00:45]} 31. c4 {[%emt 0:00:27]} Nd4 {[%emt 0:00:30]} 32. b5 {[%emt 0:00:32]} Kd7 {[%emt 0:00:45]} 33. Ke1 {[%emt 0:00:28]} c6 {[%emt 0:00:28]} 34. bxc6+ {[%emt 0:00:26]} Kxc6 {[%emt 0:00:27]} 35. Nc3 {[%emt 0:00:35]} b5 {[%emt 0:00:45]} 36. cxb5+ {[%emt 0:00:27]} Nxb5 {[%emt 0:00:26]} 37. Nd5 {[%emt 0:00:26]} 1/2-1/2

[Event "9th RTU Rapid 2019"]
[Site "Riga"]
[Date "2019.08.04"]
[Round "6.31"]
[White "Walkusz, Witoslaw"]
[Black "Gudovskis, Konstantins"]
[Result "0-1"]
[WhiteElo "2138"]
[BlackElo "2015"]
[PlyCount "62"]
[EventDate "2019.08.05"]
[EventType "swiss"]
[EventCountry "LAT"]
[TimeControl "5400+30"]
[WhiteClock "0:01:08"]
[BlackClock "0:00:11"]

1. e4 {[%emt 1:15:22]} e5 {[%emt 1:16:33]} 2. Nf3 {[%emt 0:00:27]} Nc6 {[%emt 0:00:31]} 3. Bb5 {[%emt 0:00:27]} d6 {[%emt 0:00:27]} 4. Bxc6+ {[%emt 0:00:35]} bxc6 {[%emt 0:00:26]} 5. d4 {[%emt 0:00:28]} f6 {[%emt 0:00:30]} 6. h3 {[%emt 0:01:28]} g6 {[%emt 0:00:39]} 7. c4 {[%emt 0:01:08]} Bg7 {[%emt 0:01:16]} 8. Nc3 {[%emt 0:00:43]} Nh6 {[%emt 0:00:44]} 9. dxe5 {[%emt 0:01:56]} fxe5 {[%emt 0:00:48]} 10. Be3 {[%emt 0:02:05]} Nf7 {[%emt 0:01:26]} 11. Qd2 {[%emt 0:01:51]} Be6 {[%emt 0:02:52]} 12. b3 {[%emt 0:00:40]} a5 {[%emt 0:00:35]} 13. O-O {[%emt 0:02:18]} O-O {[%emt 0:01:53]} 14. Rad1 {[%emt 0:01:25]} a4 {[%emt 0:02:56]} 15. Nxa4 {[%emt 0:00:41]} Bxc4 {[%emt 0:00:31]} 16. Rfe1 {[%emt 0:01:34]} Be6 {[%emt 0:00:33]} 17. Qc2 {[%emt 0:00:50]} Qe8 {[%emt 0:00:45]} 18. Rc1 {[%emt 0:00:42]} c5 {[%emt 0:00:39]} 19. Red1 {[%emt 0:00:48]} Bh6 {[%emt 0:00:31]} 20. Bxh6 Nxh6 {[%emt 0:00:27]} 21. Ng5 {[%emt 0:01:17]} Bd7 {[%emt 0:01:29]} 22. Nc3 {[%emt 0:01:52]} Nf7 {[%emt 0:00:40]} 23. Nxf7 Qxf7 {[%emt 0:00:27]} 24. Rd3 {[%emt 0:02:00]} Be6 {[%emt 0:01:21]} 25. Rcd1 {[%emt 0:00:42]} c4 {[%emt 0:01:16]} 26. Rf3 {[%emt 0:00:41]} cxb3 {[%emt 0:00:31]} 27. axb3 {[%emt 0:00:53]} Bxb3 {[%emt 0:00:38]} 28. Rxf7 {[%emt 0:00:46]} Bxc2 {[%emt 0:00:27]} 29. Rxf8+ {[%emt 0:00:26]} Kxf8 {[%emt 0:01:00]} 30. Rc1 {[%emt 0:00:41]} Bd3 {[%emt 0:00:55]} 31. Rd1 {[%emt 0:00:33]} Bc4 {[%emt 0:00:36]} 0-1

[Event "9th RTU Rapid 2019"]
[Site "Riga"]
[Date "2019.08.04"]
[Round "6.32"]
[White "Melderis, Uldis"]
[Black "Martynyuk, Elizaveta"]
[Result "1/2-1/2"]
[WhiteElo "1897"]
[BlackElo "2125"]
[PlyCount "140"]
[EventDate "2019.08.05"]
[EventType "swiss"]
[EventCountry "LAT"]
[TimeControl "5400+30"]
[WhiteClock "0:03:36"]
[BlackClock "0:06:11"]

1. b4 {[%emt 1:15:22]} d5 {[%emt 1:15:25]} 2. Bb2 {[%emt 0:00:26]} Nf6 {[%emt 0:00:28]} 3. e3 {[%emt 0:00:27]} Bf5 {[%emt 0:00:33]} 4. Nf3 {[%emt 0:00:26]} h6 {[%emt 0:00:29]} 5. Be2 {[%emt 0:00:27]} e6 {[%emt 0:00:28]} 6. b5 {[%emt 0:00:26]} Bd6 {[%emt 0:00:45]} 7. O-O {[%emt 0:00:27]} O-O {[%emt 0:00:29]} 8. d3 {[%emt 0:00:27]} c6 {[%emt 0:00:35]} 9. a4 {[%emt 0:00:26]} cxb5 {[%emt 0:00:41]} 10. axb5 {[%emt 0:00:26]} Nbd7 {[%emt 0:00:33]} 11. Nbd2 {[%emt 0:00:28]} e5 {[%emt 0:00:48]} 12. c4 {[%emt 0:00:26]} e4 {[%emt 0:00:32]} 13. dxe4 {[%emt 0:00:27]} dxe4 {[%emt 0:00:29]} 14. Nd4 {[%emt 0:00:37]} Bg6 {[%emt 0:00:28]} 15. Ba3 {[%emt 0:00:31]} Nc5 {[%emt 0:00:56]} 16. N2b3 {[%emt 0:00:41]} Nfd7 {[%emt 0:01:48]} 17. Nxc5 {[%emt 0:00:33]} Nxc5 {[%emt 0:00:53]} 18. Bxc5 {[%emt 0:00:47]} Bxc5 {[%emt 0:00:27]} 19. Nb3 {[%emt 0:00:27]} Bb4 {[%emt 0:00:55]} 20. Qxd8 Rfxd8 {[%emt 0:00:28]} 21. Rfd1 {[%emt 0:00:56]} Rxd1+ {[%emt 0:00:43]} 22. Rxd1 {[%emt 0:00:28]} Bf5 {[%emt 0:00:32]} 23. Nd4 {[%emt 0:00:30]} Bd7 {[%emt 0:00:41]} 24. Rb1 {[%emt 0:00:40]} Be7 {[%emt 0:00:39]} 25. h3 {[%emt 0:00:33]} Kf8 {[%emt 0:00:33]} 26. Bg4 {[%emt 0:00:29]} Ke8 {[%emt 0:00:34]} 27. Bxd7+ {[%emt 0:00:27]} Kxd7 {[%emt 0:00:27]} 28. Kf1 {[%emt 0:00:27]} Kc7 {[%emt 0:00:46]} 29. Ke2 {[%emt 0:00:44]} g6 {[%emt 0:00:43]} 30. f3 {[%emt 0:00:28]} exf3+ {[%emt 0:00:30]} 31. gxf3 {[%emt 0:00:31]} a5 {[%emt 0:00:52]} 32. bxa6 {[%emt 0:00:27]} Rxa6 {[%emt 0:00:38]} 33. Kd3 {[%emt 0:00:29]} Ra2 {[%emt 0:00:34]} 34. Nb5+ {[%emt 0:00:36]} Kc8 {[%emt 0:00:32]} 35. Rh1 {[%emt 0:00:44]} Kd7 {[%emt 0:01:10]} 36. Ke4 {[%emt 0:00:29]} f5+ {[%emt 0:00:34]} 37. Kd3 {[%emt 0:00:31]} Rb2 {[%emt 0:00:50]} 38. Kc3 {[%emt 0:01:00]} Rg2 {[%emt 0:00:53]} 39. Rd1+ {[%emt 0:00:32]} Ke6 {[%emt 0:00:44]} 40. Nd4+ {[%emt 0:00:28]} Ke5 {[%emt 0:00:47]} 41. Rb1 {[%emt 0:00:29]} Ba3 {[%emt 0:01:16]} 42. Rb5+ {[%emt 0:00:43]} Kf6 {[%emt 0:00:31]} 43. Rxb7 {[%emt 0:00:30]} Bc1 {[%emt 0:00:29]} 44. Nc2 {[%emt 0:00:48]} Rg3 {[%emt 0:01:01]} 45. Rb1 {[%emt 0:00:39]} Rg1 {[%emt 0:00:49]} 46. Rb6+ {[%emt 0:00:36]} Ke5 {[%emt 0:00:29]} 47. Nd4 {[%emt 0:00:38]} Bxe3 {[%emt 0:00:59]} 48. Re6+ {[%emt 0:00:38]} Kf4 {[%emt 0:00:27]} 49. Ne2+ {[%emt 0:00:27]} Kxf3 {[%emt 0:00:26]} 50. Nxg1+ {[%emt 0:00:26]} Bxg1 {[%emt 0:00:27]} 51. Rxg6 {[%emt 0:00:28]} Be3 {[%emt 0:00:30]} 52. Kb4 {[%emt 0:00:42]} Ke4 {[%emt 0:00:37]} 53. Re6+ {[%emt 0:00:36]} Kd3 {[%emt 0:01:51]} 54. c5 {[%emt 0:00:37]} f4 {[%emt 0:00:27]} 55. c6 {[%emt 0:00:31]} Bb6 {[%emt 0:00:27]} 56. Kb5 {[%emt 0:00:30]} Bc7 {[%emt 0:00:32]} 57. Re7 {[%emt 0:00:29]} Bb8 {[%emt 0:00:27]} 58. Re8 {[%emt 0:03:32]} Bc7 {[%emt 0:00:29]} 59. Rc8 {[%emt 0:00:45]} Be5 {[%emt 0:00:31]} 60. Rd8+ {[%emt 0:00:49]} Ke4 {[%emt 0:00:40]} 61. Re8 {[%emt 0:00:45]} f3 {[%emt 0:00:27]} 62. c7 {[%emt 0:00:28]} f2 {[%emt 0:00:27]} 63. Kc6 {[%emt 0:02:55]} f1=Q {[%emt 0:00:33]} 64. c8=Q {[%emt 0:00:27]} Qc4+ {[%emt 0:00:45]} 65. Kd7 {[%emt 0:00:48]} Qf7+ {[%emt 0:00:34]} 66. Re7 {[%emt 0:00:54]} Qd5+ {[%emt 0:01:23]} 67. Ke8 {[%emt 0:00:33]} Qg8+ {[%emt 0:00:28]} 68. Kd7 {[%emt 0:00:28]} Qd5+ {[%emt 0:00:29]} 69. Ke8 {[%emt 0:00:26]} Qg8+ {[%emt 0:00:30]} 70. Kd7 {[%emt 0:00:26]} Qd5+ {[%emt 0:00:31] Re6} 1/2-1/2

[Event "9th RTU Rapid 2019"]
[Site "Riga"]
[Date "2019.08.04"]
[Round "6.33"]
[White "Bagatais, Janis"]
[Black "Kleinschroth, Roland"]
[Result "1-0"]
[WhiteElo "1946"]
[BlackElo "2092"]
[PlyCount "101"]
[EventDate "2019.08.05"]
[EventType "swiss"]
[EventCountry "LAT"]
[TimeControl "5400+30"]
[WhiteClock "0:01:52"]
[BlackClock "0:00:41"]

1. e4 {[%emt 1:15:22]} e5 {[%emt 1:15:22]} 2. Nf3 {[%emt 0:00:27]} d6 {[%emt 0:00:26]} 3. d4 {[%emt 0:00:28]} exd4 4. Nxd4 {[%emt 0:00:26]} Nf6 {[%emt 0:00:54]} 5. Nc3 {[%emt 0:00:29]} Be7 {[%emt 0:00:27]} 6. Be2 {[%emt 0:00:45]} O-O {[%emt 0:00:30]} 7. O-O {[%emt 0:00:27]} Re8 {[%emt 0:00:27]} 8. f4 {[%emt 0:02:39]} c5 {[%emt 0:00:28]} 9. Nf3 {[%emt 0:00:58]} Bf8 {[%emt 0:02:27]} 10. e5 {[%emt 0:02:14]} Ng4 {[%emt 0:01:02]} 11. h3 {[%emt 0:02:56]} Nh6 {[%emt 0:00:27]} 12. Bb5 {[%emt 0:00:28]} Nc6 {[%emt 0:00:39]} 13. exd6 {[%emt 0:01:55]} Qxd6 {[%emt 0:00:39]} 14. Qxd6 {[%emt 0:00:35]} Bxd6 {[%emt 0:00:27]} 15. Bxc6 {[%emt 0:01:08]} bxc6 {[%emt 0:00:27]} 16. g4 {[%emt 0:00:30]} Ba6 {[%emt 0:00:58]} 17. Re1 {[%emt 0:01:33]} Rxe1+ {[%emt 0:00:58]} 18. Nxe1 {[%emt 0:00:26]} Re8 {[%emt 0:01:01]} 19. Bd2 {[%emt 0:00:35]} f6 {[%emt 0:00:42]} 20. Nd3 {[%emt 0:00:53]} c4 {[%emt 0:01:02]} 21. Nf2 {[%emt 0:00:51]} Bc5 {[%emt 0:00:49]} 22. Kf1 {[%emt 0:01:02]} Nf7 {[%emt 0:00:38]} 23. Re1 {[%emt 0:00:55]} Kf8 {[%emt 0:00:58]} 24. Rxe8+ {[%emt 0:00:32]} Kxe8 {[%emt 0:00:27]} 25. Nfe4 {[%emt 0:00:27]} Bd4 {[%emt 0:01:31]} 26. Ke2 {[%emt 0:00:33]} Kd7 {[%emt 0:00:40]} 27. Be3 {[%emt 0:00:28]} c5 {[%emt 0:02:20]} 28. Nxc5+ Bxc5 {[%emt 0:00:26]} 29. Bxc5 {[%emt 0:01:33]} g5 {[%emt 0:00:38]} 30. Bxa7 {[%emt 0:00:46]} gxf4 {[%emt 0:00:36]} 31. Kf3 {[%emt 0:00:51]} Ke6 {[%emt 0:02:12]} 32. Kxf4 {[%emt 0:00:58]} Bb7 {[%emt 0:00:29]} 33. Ne4 {[%emt 0:00:33]} Bxe4 {[%emt 0:01:10]} 34. Kxe4 {[%emt 0:00:26]} Nd6+ {[%emt 0:01:25]} 35. Kf4 {[%emt 0:00:35]} Nb5 {[%emt 0:00:26]} 36. Bf2 {[%emt 0:00:41]} c3 {[%emt 0:00:27]} 37. bxc3 {[%emt 0:01:08]} Nxc3 {[%emt 0:00:26]} 38. a3 {[%emt 0:00:40]} Na4 {[%emt 0:00:44]} 39. c4 {[%emt 0:00:32]} Nb2 {[%emt 0:00:31]} 40. c5 {[%emt 0:00:35]} Nd3+ {[%emt 0:00:30]} 41. Kf3 {[%emt 0:00:26]} Kd5 {[%emt 0:00:28]} 42. a4 {[%emt 0:00:32]} Ne5+ {[%emt 0:00:52]} 43. Ke2 {[%emt 0:00:35]} Nc6 {[%emt 0:00:31]} 44. Kd3 {[%emt 0:00:34]} Na5 {[%emt 0:00:52]} 45. Kc3 {[%emt 0:00:30]} Nc6 {[%emt 0:00:28]} 46. Bg1 {[%emt 0:00:29]} Na5 {[%emt 0:01:19]} 47. Kb4 {[%emt 0:00:27]} Nc6+ {[%emt 0:00:26]} 48. Kb5 {[%emt 0:00:27]} Na7+ {[%emt 0:00:26]} 49. Kb6 {[%emt 0:00:30]} Nc8+ {[%emt 0:00:27]} 50. Kc7 {[%emt 0:00:31]} Na7 {[%emt 0:00:33]} 51. a5 {[%emt 0:00:28]} 1-0

[Event "9th RTU Rapid 2019"]
[Site "Riga"]
[Date "2019.08.04"]
[Round "7.1"]
[White "Kopylov, Michael"]
[Black "Svane, Rasmus"]
[Result "0-1"]
[WhiteElo "2414"]
[BlackElo "2612"]
[PlyCount "56"]
[EventDate "2019.08.05"]
[EventType "swiss"]
[EventCountry "LAT"]
[TimeControl "5400+30"]
[WhiteClock "0:02:41"]
[BlackClock "0:00:17"]

1. d4 {[%emt 1:15:21]} Nf6 {[%emt 1:15:22]} 2. c4 {[%emt 0:00:27]} e6 {[%emt 0:00:26]} 3. g3 {[%emt 0:00:27]} d5 {[%emt 0:00:30]} 4. Bg2 {[%emt 0:00:27]} dxc4 {[%emt 0:00:28]} 5. Nf3 {[%emt 0:00:27]} Bb4+ {[%emt 0:00:28]} 6. Bd2 {[%emt 0:00:35]} a5 {[%emt 0:00:26]} 7. O-O {[%emt 0:00:54]} O-O {[%emt 0:00:29]} 8. Qc2 {[%emt 0:01:32]} Bxd2 {[%emt 0:00:49]} 9. Nfxd2 {[%emt 0:02:01]} Qxd4 {[%emt 0:00:39]} 10. Nxc4 {[%emt 0:00:26]} Qc5 {[%emt 0:04:01]} 11. Nbd2 {[%emt 0:01:01]} Nc6 {[%emt 0:01:14]} 12. Nb3 {[%emt 0:01:19]} Qb5 {[%emt 0:01:17]} 13. Na3 {[%emt 0:01:49]} Qh5 {[%emt 0:00:37]} 14. Bf3 {[%emt 0:01:13]} Ng4 {[%emt 0:00:48]} 15. h4 {[%emt 0:01:41]} Nce5 {[%emt 0:01:48]} 16. Qxc7 {[%emt 0:01:19]} Nxf3+ 17. exf3 {[%emt 0:00:26]} Ne5 {[%emt 0:01:06]} 18. f4 {[%emt 0:00:46]} Nf3+ {[%emt 0:00:29]} 19. Kg2 {[%emt 0:00:26]} e5 {[%emt 0:02:48]} 20. Rh1 {[%emt 0:02:26]} Be6 {[%emt 0:00:26]} 21. Qxb7 {[%emt 0:01:03]} Rad8 {[%emt 0:00:44]} 22. Qc7 {[%emt 0:03:39]} Bd5 {[%emt 0:01:47]} 23. Kf1 {[%emt 0:00:27]} a4 {[%emt 0:00:33]} 24. Nc5 {[%emt 0:00:52]} Nd2+ {[%emt 0:00:39]} 25. Kg1 {[%emt 0:00:32]} Qf3 {[%emt 0:01:16]} 26. Rh2 {[%emt 0:00:26]} Qe2 {[%emt 0:00:27]} 27. Rg2 {[%emt 0:01:16]} Nf3+ {[%emt 0:00:49]} 28. Kh1 {[%emt 0:00:25]} Nxh4 {[%emt 0:00:53]} 0-1